[Event "*** Titled Tuesday Blitz"]
[Site "Chess.com"]
[Date "2020.03.03"]
[Round "5"]
[White "Oligan22"]
[Black "viktorko131"]
[Result "1-0"]
[WhiteElo "2391"]
[BlackElo "2106"]
[TimeControl "180+1"]
[EndTime "9:52:03 PST"]
[Termination "Oligan22 won on time"]

1. e4 {[%clk 0:03:00.9]} 1... c5 {[%clk 0:02:54.3]} 2. Nf3 {[%clk 0:03:00.4]}
2... Nc6 {[%clk 0:02:52.5]} 3. d4 {[%clk 0:02:59.3]} 3... cxd4 {[%clk
0:02:53.4]} 4. Nxd4 {[%clk 0:03:00]} 4... Nf6 {[%clk 0:02:53.7]} 5. Nc3 {[%clk
0:03:00.1]} 5... e5 {[%clk 0:02:52.6]} 6. Ndb5 {[%clk 0:03:00.2]} 6... d6 {[%clk
0:02:52.9]} 7. Nd5 {[%clk 0:03:00.2]} 7... Nxd5 {[%clk 0:02:51.4]} 8. exd5
{[%clk 0:03:01.1]} 8... Ne7 {[%clk 0:02:50.8]} 9. c4 {[%clk 0:03:01.5]} 9... Nf5
{[%clk 0:02:50.1]} 10. Bd3 {[%clk 0:02:56.4]} 10... Be7 {[%clk 0:02:49.1]} 11.
O-O {[%clk 0:02:55.9]} 11... O-O {[%clk 0:02:48.1]} 12. a4 {[%clk 0:02:33.4]}
12... a6 {[%clk 0:02:02]} 13. Nc3 {[%clk 0:02:32.9]} 13... Nd4 {[%clk 0:02:02]}
14. a5 {[%clk 0:02:19.3]} 14... f5 {[%clk 0:02:00.1]} 15. Be3 {[%clk 0:02:19.2]}
15... b5 {[%clk 0:01:17.7]} 16. cxb5 {[%clk 0:02:05.8]} 16... axb5 {[%clk
0:01:15.7]} 17. Bxd4 {[%clk 0:02:02.8]} 17... exd4 {[%clk 0:01:14.2]} 18. Nxb5
{[%clk 0:02:03.3]} 18... Rxa5 {[%clk 0:01:14.3]} 19. Nxd4 {[%clk 0:02:00.6]}
19... Bf6 {[%clk 0:01:09.6]} 20. Nc6 {[%clk 0:01:52.3]} 20... Rxa1 {[%clk
0:01:08.3]} 21. Qxa1 {[%clk 0:01:53.2]} 21... Qb6 {[%clk 0:01:07]} 22. Rb1
{[%clk 0:01:43.6]} 22... Re8 {[%clk 0:01:03.9]} 23. g3 {[%clk 0:01:25.2]} 23...
f4 {[%clk 0:00:48.7]} 24. Qa3 {[%clk 0:01:13.3]} 24... fxg3 {[%clk 0:00:46.9]}
25. hxg3 {[%clk 0:01:12.5]} 25... Bg4 {[%clk 0:00:21.3]} 26. Qxd6 {[%clk
0:01:09]} 26... Kh8 {[%clk 0:00:22]} 27. Qf4 {[%clk 0:00:53.4]} 27... h5 {[%clk
0:00:21.2]} 28. b4 {[%clk 0:00:45.1]} 28... Bc3 {[%clk 0:00:08]} 29. Qc4 {[%clk
0:00:24.9]} 29... Be1 {[%clk 0:00:06.8]} 30. Qd4 {[%clk 0:00:20.4]} 30... Qc7
{[%clk 0:00:05.9]} 31. Kg2 {[%clk 0:00:18.7]} 31... Qd7 {[%clk 0:00:03.5]} 32.
Be4 {[%clk 0:00:17]} 32... Bd2 {[%clk 0:00:01.7]} 33. Qxd2 {[%clk 0:00:15.9]}
33... Rxe4 {[%clk 0:00:01.8]} 34. f3 {[%clk 0:00:15.8]} 34... Bh3+ {[%clk
0:00:01.4]} 35. Kh2 {[%clk 0:00:16.3]} 35... Rc4 {[%clk 0:00:01.2]} 36. Ne5
{[%clk 0:00:15.9]} 1-0

[Event "*** Titled Tuesday Blitz"]
[Site "Chess.com"]
[Date "2020.03.03"]
[Round "5"]
[White "Volodar_Murzin"]
[Black "elohunter1999"]
[Result "1-0"]
[WhiteElo "2688"]
[BlackElo "2445"]
[TimeControl "180+1"]
[EndTime "9:52:04 PST"]
[Termination "Volodar_Murzin won by resignation"]

1. e4 {[%clk 0:03:00.9]} 1... c5 {[%clk 0:03:00.1]} 2. Nf3 {[%clk 0:03:00]} 2...
Nc6 {[%clk 0:03:00.5]} 3. Bb5 {[%clk 0:02:59.8]} 3... g6 {[%clk 0:03:00.1]} 4.
Bxc6 {[%clk 0:02:59]} 4... bxc6 {[%clk 0:03:00.3]} 5. O-O {[%clk 0:02:59.7]}
5... Bg7 {[%clk 0:03:00.6]} 6. d3 {[%clk 0:02:59]} 6... Nh6 {[%clk 0:02:55.7]}
7. Nbd2 {[%clk 0:02:51.9]} 7... O-O {[%clk 0:02:54.9]} 8. Re1 {[%clk 0:02:51.5]}
8... f5 {[%clk 0:02:54.4]} 9. Nc4 {[%clk 0:02:49.7]} 9... d6 {[%clk 0:02:48.2]}
10. h3 {[%clk 0:02:31.7]} 10... e5 {[%clk 0:02:43]} 11. a3 {[%clk 0:02:19.6]}
11... a5 {[%clk 0:02:41.5]} 12. Rb1 {[%clk 0:02:16.4]} 12... f4 {[%clk
0:02:37.7]} 13. b4 {[%clk 0:02:14.4]} 13... axb4 {[%clk 0:02:37.5]} 14. axb4
{[%clk 0:02:13.6]} 14... cxb4 {[%clk 0:02:28.7]} 15. d4 {[%clk 0:02:12]} 15...
Be6 {[%clk 0:02:16.2]} 16. Qd3 {[%clk 0:01:58.4]} 16... Nf7 {[%clk 0:01:54.2]}
17. dxe5 {[%clk 0:01:51.1]} 17... Nxe5 {[%clk 0:01:40.6]} 18. Ncxe5 {[%clk
0:01:42.2]} 18... dxe5 {[%clk 0:01:39.4]} 19. Rxb4 {[%clk 0:01:41.5]} 19... Qe7
{[%clk 0:01:29.5]} 20. Qc3 {[%clk 0:01:33.7]} 20... Rfb8 {[%clk 0:00:54.5]} 21.
Ba3 {[%clk 0:01:17.5]} 21... Rxb4 {[%clk 0:00:41.3]} 22. Bxb4 {[%clk 0:01:16]}
22... Qc7 {[%clk 0:00:25.5]} 23. Rd1 {[%clk 0:01:11.3]} 23... c5 {[%clk
0:00:19.6]} 24. Qxc5 {[%clk 0:00:56.6]} 24... Qxc5 {[%clk 0:00:19.6]} 25. Bxc5
{[%clk 0:00:57]} 25... Rc8 {[%clk 0:00:20.5]} 26. Bd6 {[%clk 0:00:28.2]} 26...
Rd8 {[%clk 0:00:20.7]} 27. Rd2 {[%clk 0:00:25.5]} 27... h6 {[%clk 0:00:19.7]}
28. Kf1 {[%clk 0:00:18.5]} 28... Bc4+ {[%clk 0:00:18.3]} 29. Ke1 {[%clk
0:00:18.6]} 29... Kf7 {[%clk 0:00:19.2]} 30. Bxe5 {[%clk 0:00:17.8]} 30... Rxd2
{[%clk 0:00:18.8]} 31. Nxd2 {[%clk 0:00:16.9]} 31... Bxe5 {[%clk 0:00:17.7]} 32.
Nxc4 {[%clk 0:00:16.9]} 32... Bd4 {[%clk 0:00:18.6]} 33. Ke2 {[%clk 0:00:16.8]}
33... Ke6 {[%clk 0:00:18.8]} 34. f3 {[%clk 0:00:17.1]} 34... g5 {[%clk 0:00:19]}
35. Kd3 {[%clk 0:00:17.5]} 35... Bc5 {[%clk 0:00:19]} 36. Nd2 {[%clk 0:00:16.5]}
36... Bb6 {[%clk 0:00:18.7]} 37. Nb3 {[%clk 0:00:15.5]} 37... h5 {[%clk
0:00:18.5]} 38. c4 {[%clk 0:00:16]} 38... Bc7 {[%clk 0:00:18.3]} 39. c5 {[%clk
0:00:15.8]} 39... Ke5 {[%clk 0:00:19.2]} 40. Kc4 {[%clk 0:00:16.1]} 40... g4
{[%clk 0:00:19.2]} 41. Nd4 {[%clk 0:00:16.7]} 41... g3 {[%clk 0:00:18.3]} 42.
Nb5 {[%clk 0:00:14.9]} 42... Bd8 {[%clk 0:00:17.8]} 43. c6 {[%clk 0:00:14.9]}
1-0

[Event "*** Titled Tuesday Blitz"]
[Site "Chess.com"]
[Date "2020.03.03"]
[Round "5"]
[White "bgfbfbgfbgfgf"]
[Black "vugarrasulov"]
[Result "0-1"]
[WhiteElo "2643"]
[BlackElo "2893"]
[TimeControl "180+1"]
[EndTime "9:52:06 PST"]
[Termination "vugarrasulov won by resignation"]

1. e4 {[%clk 0:03:00.9]} 1... c5 {[%clk 0:02:59.5]} 2. Nf3 {[%clk 0:03:00.8]}
2... d6 {[%clk 0:02:59.9]} 3. d4 {[%clk 0:03:00.2]} 3... cxd4 {[%clk 0:03:00.8]}
4. Nxd4 {[%clk 0:03:01.1]} 4... Nf6 {[%clk 0:03:01.3]} 5. Nc3 {[%clk 0:03:01.3]}
5... a6 {[%clk 0:03:01.8]} 6. h3 {[%clk 0:03:00.8]} 6... e6 {[%clk 0:03:01.1]}
7. g4 {[%clk 0:03:00.7]} 7... h6 {[%clk 0:03:01.6]} 8. Bg2 {[%clk 0:02:58.2]}
8... g5 {[%clk 0:03:00]} 9. b3 {[%clk 0:02:57.5]} 9... Nbd7 {[%clk 0:02:50.9]}
10. Bb2 {[%clk 0:02:57.9]} 10... Ne5 {[%clk 0:02:51.4]} 11. Qd2 {[%clk
0:02:55.4]} 11... b5 {[%clk 0:02:46.1]} 12. O-O-O {[%clk 0:02:53.9]} 12... Bb7
{[%clk 0:02:46.4]} 13. Nce2 {[%clk 0:02:38.8]} 13... Qc7 {[%clk 0:02:25.8]} 14.
Ng3 {[%clk 0:02:28.5]} 14... Be7 {[%clk 0:02:19.1]} 15. f3 {[%clk 0:02:25.4]}
15... O-O-O {[%clk 0:02:15.3]} 16. Kb1 {[%clk 0:02:13.8]} 16... d5 {[%clk
0:02:15.2]} 17. f4 {[%clk 0:01:47]} 17... gxf4 {[%clk 0:02:05.4]} 18. Qxf4
{[%clk 0:01:47]} 18... Ng6 {[%clk 0:01:47.1]} 19. Qxc7+ {[%clk 0:00:56.3]} 19...
Kxc7 {[%clk 0:01:48]} 20. exd5 {[%clk 0:00:57.2]} 20... Nxd5 {[%clk 0:01:38.6]}
21. Rhe1 {[%clk 0:00:56.3]} 21... Bb4 {[%clk 0:01:30]} 22. Rf1 {[%clk
0:00:56.1]} 22... Rhf8 {[%clk 0:01:21.8]} 23. Bxd5 {[%clk 0:00:54.1]} 23... Rxd5
{[%clk 0:01:19.6]} 24. Nh5 {[%clk 0:00:45.1]} 24... Be7 {[%clk 0:00:59.5]} 25.
Rde1 {[%clk 0:00:32.2]} 25... Bh4 {[%clk 0:00:39.4]} 26. Re2 {[%clk 0:00:27.8]}
26... Bc8 {[%clk 0:00:39.3]} 27. Nf6 {[%clk 0:00:25.3]} 27... Bxf6 {[%clk
0:00:35]} 28. Rxf6 {[%clk 0:00:26.2]} 28... e5 {[%clk 0:00:28.9]} 29. Nf3 {[%clk
0:00:19.4]} 29... Rd1+ {[%clk 0:00:17.3]} 30. Bc1 {[%clk 0:00:18.7]} 30... Rf1
{[%clk 0:00:17.8]} 31. Re3 {[%clk 0:00:09.6]} 31... Bb7 {[%clk 0:00:17.1]} 32.
h4 {[%clk 0:00:01.8]} 32... e4 {[%clk 0:00:15.4]} 33. h5 {[%clk 0:00:02.3]}
33... Rxf3 {[%clk 0:00:14]} 34. Rc3+ {[%clk 0:00:02.9]} 34... Rxc3 {[%clk
0:00:13.5]} 0-1

[Event "*** Titled Tuesday Blitz"]
[Site "Chess.com"]
[Date "2020.03.03"]
[Round "5"]
[White "jmduque"]
[Black "Roman_Ovetchkin"]
[Result "1-0"]
[WhiteElo "2454"]
[BlackElo "2616"]
[TimeControl "180+1"]
[EndTime "9:52:13 PST"]
[Termination "jmduque won on time"]

1. e4 {[%clk 0:03:00.9]} 1... c6 {[%clk 0:03:00]} 2. Nf3 {[%clk 0:02:59.2]} 2...
d5 {[%clk 0:03:00.9]} 3. d3 {[%clk 0:02:59.7]} 3... Bg4 {[%clk 0:02:59.3]} 4.
Be2 {[%clk 0:02:57]} 4... e6 {[%clk 0:02:58.5]} 5. Nfd2 {[%clk 0:02:56.8]} 5...
Bxe2 {[%clk 0:02:56.7]} 6. Qxe2 {[%clk 0:02:57.7]} 6... g6 {[%clk 0:02:46.4]} 7.
O-O {[%clk 0:02:57.3]} 7... Bg7 {[%clk 0:02:46.5]} 8. c3 {[%clk 0:02:56.5]} 8...
Ne7 {[%clk 0:02:46.8]} 9. f4 {[%clk 0:02:53.8]} 9... O-O {[%clk 0:02:42.6]} 10.
Nf3 {[%clk 0:02:52.9]} 10... c5 {[%clk 0:02:42.1]} 11. Be3 {[%clk 0:02:52.3]}
11... Qc7 {[%clk 0:02:35.2]} 12. Nh4 {[%clk 0:02:45.9]} 12... d4 {[%clk
0:02:24.5]} 13. cxd4 {[%clk 0:02:44.5]} 13... cxd4 {[%clk 0:02:22.6]} 14. Bd2
{[%clk 0:02:43.9]} 14... Nbc6 {[%clk 0:02:16.1]} 15. Na3 {[%clk 0:02:42.9]}
15... Rae8 {[%clk 0:02:06.3]} 16. g4 {[%clk 0:02:42.2]} 16... f5 {[%clk
0:02:03.6]} 17. gxf5 {[%clk 0:02:13.6]} 17... exf5 {[%clk 0:02:01.7]} 18. e5
{[%clk 0:02:13.5]} 18... Nd5 {[%clk 0:02:00.8]} 19. Nf3 {[%clk 0:02:13.6]} 19...
a6 {[%clk 0:01:57.8]} 20. Kh1 {[%clk 0:02:12.1]} 20... b5 {[%clk 0:01:53.8]} 21.
Nc2 {[%clk 0:02:11.3]} 21... Qb6 {[%clk 0:01:51.6]} 22. Qf2 {[%clk 0:02:08]}
22... Rd8 {[%clk 0:01:27.4]} 23. Rg1 {[%clk 0:02:07.2]} 23... Nc7 {[%clk
0:01:23.9]} 24. h4 {[%clk 0:02:05.5]} 24... Ne6 {[%clk 0:01:16.1]} 25. h5 {[%clk
0:02:04.4]} 25... Ne7 {[%clk 0:01:13.6]} 26. Qh4 {[%clk 0:02:02.4]} 26... Qb7
{[%clk 0:01:11.9]} 27. Ne1 {[%clk 0:02:00.6]} 27... Kf7 {[%clk 0:01:06.2]} 28.
Bb4 {[%clk 0:01:56.6]} 28... Nd5 {[%clk 0:01:00.2]} 29. Bxf8 {[%clk 0:01:49.6]}
29... Rxf8 {[%clk 0:00:59.1]} 30. Rc1 {[%clk 0:01:37]} 30... Ndxf4 {[%clk
0:00:54.8]} 31. Rc2 {[%clk 0:01:30.4]} 31... Nxh5 {[%clk 0:00:52.1]} 32. Kh2
{[%clk 0:01:25.8]} 32... Nhf4 {[%clk 0:00:49.4]} 33. Ng5+ {[%clk 0:01:22]} 33...
Nxg5 {[%clk 0:00:48.8]} 34. Qxf4 {[%clk 0:01:20.1]} 34... Ne6 {[%clk 0:00:48.4]}
35. Qf3 {[%clk 0:01:17]} 35... Bxe5+ {[%clk 0:00:46.8]} 36. Kg2 {[%clk
0:01:14.6]} 36... Nf4+ {[%clk 0:00:45.8]} 37. Kf1 {[%clk 0:01:14.1]} 37... Qd7
{[%clk 0:00:39.1]} 38. Rc6 {[%clk 0:01:08]} 38... Re8 {[%clk 0:00:34.2]} 39.
Rxa6 {[%clk 0:01:06.3]} 39... Bb8 {[%clk 0:00:34.1]} 40. Rb6 {[%clk 0:01:00]}
40... Nd5 {[%clk 0:00:32.9]} 41. Ra6 {[%clk 0:00:48.4]} 41... Re3 {[%clk
0:00:30.9]} 42. Qh1 {[%clk 0:00:42.4]} 42... Kg7 {[%clk 0:00:28.2]} 43. Qh5
{[%clk 0:00:35.3]} 43... Nf4 {[%clk 0:00:26.8]} 44. Qg5 {[%clk 0:00:28.9]} 44...
Qe6 {[%clk 0:00:22.5]} 45. Rxe6 {[%clk 0:00:27.6]} 45... Rxe6 {[%clk 0:00:18.4]}
46. Qxf5 {[%clk 0:00:27.8]} 46... Rf6 {[%clk 0:00:03.8]} 47. Qd7+ {[%clk
0:00:27.4]} 47... Rf7 {[%clk 0:00:03]} 48. Qxd4+ {[%clk 0:00:26.2]} 1-0

[Event "*** Titled Tuesday Blitz"]
[Site "Chess.com"]
[Date "2020.03.03"]
[Round "5"]
[White "Alopekos"]
[Black "AniJak"]
[Result "0-1"]
[WhiteElo "2455"]
[BlackElo "2174"]
[TimeControl "180+1"]
[EndTime "9:52:19 PST"]
[Termination "AniJak won by checkmate"]

1. d4 {[%clk 0:03:00.9]} 1... d5 {[%clk 0:02:59]} 2. Nf3 {[%clk 0:02:59.1]} 2...
Nf6 {[%clk 0:02:58]} 3. e3 {[%clk 0:02:58.7]} 3... c6 {[%clk 0:02:55.2]} 4. Bd3
{[%clk 0:02:57.5]} 4... Bg4 {[%clk 0:02:51.5]} 5. O-O {[%clk 0:02:56.3]} 5... e6
{[%clk 0:02:48.5]} 6. h3 {[%clk 0:02:52.3]} 6... Bh5 {[%clk 0:02:48.1]} 7. b3
{[%clk 0:02:51]} 7... Bd6 {[%clk 0:02:47.2]} 8. Bb2 {[%clk 0:02:49.9]} 8... Nbd7
{[%clk 0:02:46.9]} 9. Nbd2 {[%clk 0:02:42.1]} 9... Qe7 {[%clk 0:02:46.6]} 10. e4
{[%clk 0:02:34.5]} 10... dxe4 {[%clk 0:02:45.9]} 11. Nxe4 {[%clk 0:02:34.1]}
11... Nxe4 {[%clk 0:02:45.7]} 12. Bxe4 {[%clk 0:02:35]} 12... Bg6 {[%clk
0:02:45.2]} 13. Re1 {[%clk 0:02:12.1]} 13... O-O {[%clk 0:02:39.1]} 14. Bxg6
{[%clk 0:02:06.8]} 14... hxg6 {[%clk 0:02:37.9]} 15. c4 {[%clk 0:02:05.7]} 15...
Rfd8 {[%clk 0:02:33]} 16. Qe2 {[%clk 0:01:56.9]} 16... Bb4 {[%clk 0:02:31.7]}
17. Red1 {[%clk 0:01:55.4]} 17... c5 {[%clk 0:02:24.3]} 18. d5 {[%clk
0:01:50.3]} 18... Nf8 {[%clk 0:02:15.6]} 19. Qe5 {[%clk 0:01:21.2]} 19... f6
{[%clk 0:02:10.6]} 20. d6 {[%clk 0:01:05.4]} 20... Qf7 {[%clk 0:01:59.8]} 21.
Qe4 {[%clk 0:00:59.2]} 21... Rac8 {[%clk 0:01:55.1]} 22. Rd3 {[%clk 0:00:51.1]}
22... Rc6 {[%clk 0:01:53.6]} 23. Rad1 {[%clk 0:00:48.6]} 23... Ra6 {[%clk
0:01:51]} 24. a3 {[%clk 0:00:27]} 24... Bxa3 {[%clk 0:01:49.2]} 25. Bxa3 {[%clk
0:00:26.5]} 25... Rxa3 {[%clk 0:01:49.1]} 26. d7 {[%clk 0:00:26.1]} 26... Rxd7
{[%clk 0:01:40.2]} 27. Rxd7 {[%clk 0:00:23.6]} 27... Nxd7 {[%clk 0:01:39.8]} 28.
Qxb7 {[%clk 0:00:23.1]} 28... Nf8 {[%clk 0:01:34.2]} 29. Qb8 {[%clk 0:00:15.4]}
29... Ra6 {[%clk 0:01:07.7]} 30. Rd8 {[%clk 0:00:13.8]} 30... Rb6 {[%clk
0:01:06.5]} 31. Qc8 {[%clk 0:00:12.9]} 31... Rxb3 {[%clk 0:00:57.8]} 32. Qxc5
{[%clk 0:00:12.7]} 32... Rb1+ {[%clk 0:00:51.1]} 33. Kh2 {[%clk 0:00:11.8]}
33... Rb7 {[%clk 0:00:51]} 34. Qc6 {[%clk 0:00:11]} 34... Qc7+ {[%clk
0:00:50.5]} 35. Qxc7 {[%clk 0:00:10.7]} 35... Rxc7 {[%clk 0:00:50.7]} 36. Rd4
{[%clk 0:00:10.3]} 36... Kf7 {[%clk 0:00:50.7]} 37. Nd2 {[%clk 0:00:09.6]} 37...
e5 {[%clk 0:00:50.8]} 38. Rd6 {[%clk 0:00:09]} 38... Ne6 {[%clk 0:00:50.6]} 39.
Ra6 {[%clk 0:00:08.7]} 39... Nd4 {[%clk 0:00:49.9]} 40. c5 {[%clk 0:00:07.2]}
40... Ne6 {[%clk 0:00:47.5]} 41. Ne4 {[%clk 0:00:06.7]} 41... f5 {[%clk
0:00:45]} 42. Nd6+ {[%clk 0:00:06.6]} 42... Ke7 {[%clk 0:00:39.6]} 43. Kg3
{[%clk 0:00:05.2]} 43... Nxc5 {[%clk 0:00:38.6]} 44. Nxf5+ {[%clk 0:00:03.4]}
44... gxf5 {[%clk 0:00:38]} 45. Rg6 {[%clk 0:00:04.3]} 45... Kf7 {[%clk
0:00:38]} 46. Ra6 {[%clk 0:00:04]} 46... Nxa6 {[%clk 0:00:37.7]} 47. Kh4 {[%clk
0:00:04.9]} 47... Nc5 {[%clk 0:00:37.5]} 48. f4 {[%clk 0:00:05.5]} 48... e4
{[%clk 0:00:37.1]} 49. g4 {[%clk 0:00:06.4]} 49... e3 {[%clk 0:00:37.4]} 50. Kg5
{[%clk 0:00:06.5]} 50... e2 {[%clk 0:00:36.9]} 51. h4 {[%clk 0:00:06.6]} 51...
e1=Q {[%clk 0:00:36.3]} 52. gxf5 {[%clk 0:00:06.8]} 52... Qg3+ {[%clk
0:00:35.2]} 53. Kh5 {[%clk 0:00:06.6]} 53... Qf3+ {[%clk 0:00:34.9]} 54. Kg5
{[%clk 0:00:05.7]} 54... Ne4# {[%clk 0:00:35.1]} 0-1

[Event "*** Titled Tuesday Blitz"]
[Site "Chess.com"]
[Date "2020.03.03"]
[Round "5"]
[White "GukeshDommaraju"]
[Black "ArlanCabe"]
[Result "1-0"]
[WhiteElo "2644"]
[BlackElo "2367"]
[TimeControl "180+1"]
[EndTime "9:52:24 PST"]
[Termination "GukeshDommaraju won on time"]

1. e4 {[%clk 0:03:00.9]} 1... c5 {[%clk 0:02:59.3]} 2. Nf3 {[%clk 0:03:00.9]}
2... d6 {[%clk 0:02:59.9]} 3. d4 {[%clk 0:03:00.9]} 3... cxd4 {[%clk 0:03:00.5]}
4. Nxd4 {[%clk 0:03:01.8]} 4... Nf6 {[%clk 0:03:01.1]} 5. Nc3 {[%clk 0:03:02.3]}
5... a6 {[%clk 0:03:01.6]} 6. Be3 {[%clk 0:03:01.9]} 6... e5 {[%clk 0:03:01.2]}
7. Nb3 {[%clk 0:03:01.5]} 7... Be6 {[%clk 0:03:00.2]} 8. Be2 {[%clk 0:03:01.8]}
8... Nbd7 {[%clk 0:02:59.5]} 9. O-O {[%clk 0:03:02]} 9... Rc8 {[%clk 0:02:58.6]}
10. a4 {[%clk 0:02:59]} 10... Be7 {[%clk 0:02:56]} 11. Qd2 {[%clk 0:02:55.9]}
11... O-O {[%clk 0:02:51.6]} 12. Rfd1 {[%clk 0:02:53.1]} 12... Re8 {[%clk
0:02:43.5]} 13. Bf3 {[%clk 0:02:50]} 13... Nb6 {[%clk 0:02:40.7]} 14. Na5 {[%clk
0:02:43.2]} 14... Nc4 {[%clk 0:02:34.2]} 15. Nxc4 {[%clk 0:02:43.1]} 15... Rxc4
{[%clk 0:02:31.9]} 16. a5 {[%clk 0:02:41.5]} 16... Qc7 {[%clk 0:02:28.2]} 17.
Bb6 {[%clk 0:02:36]} 17... Qc8 {[%clk 0:02:23.9]} 18. Rdc1 {[%clk 0:02:31.5]}
18... h6 {[%clk 0:02:18.1]} 19. Qd3 {[%clk 0:02:29.4]} 19... Nd7 {[%clk
0:02:05.7]} 20. Be3 {[%clk 0:02:25.2]} 20... Nc5 {[%clk 0:02:01.4]} 21. Qe2
{[%clk 0:02:21.8]} 21... Nd7 {[%clk 0:01:59.9]} 22. Nd1 {[%clk 0:02:14.8]} 22...
Nf6 {[%clk 0:01:56.2]} 23. b3 {[%clk 0:02:10.4]} 23... Rc6 {[%clk 0:01:53.1]}
24. c4 {[%clk 0:02:07]} 24... Nd7 {[%clk 0:01:35.9]} 25. Nc3 {[%clk 0:02:06.7]}
25... Nc5 {[%clk 0:01:34.3]} 26. Qd1 {[%clk 0:01:37.8]} 26... Bg5 {[%clk
0:01:27.6]} 27. Bxg5 {[%clk 0:01:33.3]} 27... hxg5 {[%clk 0:01:27]} 28. h3
{[%clk 0:01:25.9]} 28... Bd7 {[%clk 0:01:13]} 29. Ra2 {[%clk 0:01:14.2]} 29...
Ne6 {[%clk 0:01:11.2]} 30. Ne2 {[%clk 0:01:13.2]} 30... Qc7 {[%clk 0:01:02.1]}
31. Bg4 {[%clk 0:01:12.7]} 31... Nc5 {[%clk 0:01:00]} 32. Ng3 {[%clk 0:00:52.5]}
32... Bxg4 {[%clk 0:00:38.7]} 33. hxg4 {[%clk 0:00:52.3]} 33... g6 {[%clk
0:00:37.4]} 34. f3 {[%clk 0:00:40.6]} 34... Kg7 {[%clk 0:00:36]} 35. Nf1 {[%clk
0:00:34.5]} 35... b6 {[%clk 0:00:28.4]} 36. b4 {[%clk 0:00:29.4]} 36... Ne6
{[%clk 0:00:25.8]} 37. Ne3 {[%clk 0:00:29.6]} 37... bxa5 {[%clk 0:00:23.8]} 38.
Rxa5 {[%clk 0:00:27.7]} 38... Qb6 {[%clk 0:00:20.8]} 39. Qd2 {[%clk 0:00:27.9]}
39... Rb8 {[%clk 0:00:13.8]} 40. Ra4 {[%clk 0:00:24.6]} 40... Nf4 {[%clk
0:00:09.9]} 41. g3 {[%clk 0:00:22.4]} 41... Ne6 {[%clk 0:00:07.8]} 42. Kg2
{[%clk 0:00:22.4]} 42... Nd4 {[%clk 0:00:06.9]} 43. Nd5 {[%clk 0:00:22.5]} 43...
Qd8 {[%clk 0:00:06.1]} 44. Ra3 {[%clk 0:00:19.4]} 44... Rbc8 {[%clk 0:00:05.4]}
45. Rac3 {[%clk 0:00:18.7]} 45... Qd7 {[%clk 0:00:01.3]} 46. Qxg5 {[%clk
0:00:17.6]} 1-0

[Event "*** Titled Tuesday Blitz"]
[Site "Chess.com"]
[Date "2020.03.03"]
[Round "5"]
[White "NguyenHlb"]
[Black "Gogolev_Artemy"]
[Result "1-0"]
[WhiteElo "2297"]
[BlackElo "2481"]
[TimeControl "180+1"]
[EndTime "9:52:25 PST"]
[Termination "NguyenHlb won on time"]

1. d4 {[%clk 0:02:55]} 1... Nf6 {[%clk 0:02:57.7]} 2. c4 {[%clk 0:02:54.6]} 2...
e6 {[%clk 0:02:45.7]} 3. Nc3 {[%clk 0:02:52.3]} 3... Bb4 {[%clk 0:02:42.7]} 4.
e3 {[%clk 0:02:50.3]} 4... O-O {[%clk 0:02:42.1]} 5. Ne2 {[%clk 0:02:48.8]} 5...
c6 {[%clk 0:02:40.7]} 6. a3 {[%clk 0:02:38.3]} 6... Ba5 {[%clk 0:02:29.8]} 7. b4
{[%clk 0:02:35.5]} 7... Bc7 {[%clk 0:02:29.1]} 8. d5 {[%clk 0:02:28.1]} 8...
cxd5 {[%clk 0:02:23.3]} 9. cxd5 {[%clk 0:02:29]} 9... Be5 {[%clk 0:02:14.2]} 10.
f4 {[%clk 0:02:25.3]} 10... Bxc3+ {[%clk 0:02:03.6]} 11. Nxc3 {[%clk 0:02:26.2]}
11... Nxd5 {[%clk 0:01:53.6]} 12. Nxd5 {[%clk 0:02:25.9]} 12... exd5 {[%clk
0:01:54.5]} 13. Qxd5 {[%clk 0:02:22]} 13... Qf6 {[%clk 0:01:51.4]} 14. Rb1
{[%clk 0:02:05.5]} 14... d6 {[%clk 0:01:46]} 15. Bd3 {[%clk 0:01:59.7]} 15...
Be6 {[%clk 0:01:37.3]} 16. Qe4 {[%clk 0:01:55.2]} 16... g6 {[%clk 0:01:30.8]}
17. Bb2 {[%clk 0:01:51.7]} 17... Qh4+ {[%clk 0:01:26.3]} 18. g3 {[%clk
0:01:51.2]} 18... Qh3 {[%clk 0:01:25.8]} 19. Qxb7 {[%clk 0:01:38.3]} 19... Nd7
{[%clk 0:01:19.6]} 20. Rc1 {[%clk 0:01:27.3]} 20... Nb6 {[%clk 0:01:18.9]} 21.
Be4 {[%clk 0:01:15.6]} 21... Rab8 {[%clk 0:00:41.2]} 22. Qe7 {[%clk 0:01:03.8]}
22... Nd7 {[%clk 0:00:20.1]} 23. Kf2 {[%clk 0:00:56.7]} 23... Rfe8 {[%clk
0:00:19.2]} 24. Qxd6 {[%clk 0:00:54.7]} 24... Bf5 {[%clk 0:00:16.9]} 25. Bg2
{[%clk 0:00:52]} 25... Qh6 {[%clk 0:00:16]} 26. Qd4 {[%clk 0:00:44.1]} 26... f6
{[%clk 0:00:14.5]} 27. e4 {[%clk 0:00:42]} 27... Be6 {[%clk 0:00:12.5]} 28. Rc6
{[%clk 0:00:39.1]} 28... Rb6 {[%clk 0:00:11.2]} 29. Rc7 {[%clk 0:00:38.4]} 29...
Qg7 {[%clk 0:00:09.8]} 30. Rd1 {[%clk 0:00:36]} 30... Re7 {[%clk 0:00:09.2]} 31.
Rc8+ {[%clk 0:00:33.8]} 31... Nf8 {[%clk 0:00:09.5]} 32. Rd8 {[%clk 0:00:26.6]}
32... Bb3 {[%clk 0:00:07.8]} 33. Rd3 {[%clk 0:00:23.7]} 33... Bc2 {[%clk
0:00:06.9]} 34. Rd2 {[%clk 0:00:22.8]} 34... Ba4 {[%clk 0:00:06.9]} 35. Qc4+
{[%clk 0:00:19.5]} 35... Kh8 {[%clk 0:00:06.5]} 36. e5 {[%clk 0:00:19.6]} 36...
fxe5 {[%clk 0:00:04.5]} 37. Bxe5 {[%clk 0:00:19.5]} 37... Rxe5 {[%clk
0:00:04.7]} 38. fxe5 {[%clk 0:00:19.8]} 38... Re6 {[%clk 0:00:02.9]} 39. Qxe6
{[%clk 0:00:19.1]} 39... h5 {[%clk 0:00:02.8]} 40. Qd6 {[%clk 0:00:16.7]} 40...
Kg8 {[%clk 0:00:02.3]} 41. Bd5+ {[%clk 0:00:16.7]} 41... Kh7 {[%clk 0:00:02]}
42. Rxf8 {[%clk 0:00:16.9]} 42... Qh6 {[%clk 0:00:01.9]} 43. Rf7+ {[%clk
0:00:16.7]} 43... Kg8 {[%clk 0:00:01.1]} 44. Qd8+ {[%clk 0:00:16.6]} 1-0